bitfinex/quotes_SOLUSD_20240616
["timestamp","ask_amount","ask_price","bid_price","bid_amount"]
[1718573858969,0.08551938,149.17,149.16,5.64]
[1718573861067,0.08551938,149.17,149.16,25.64]
[1718573863166,0.08551938,149.17,149.16,5.64]
[1718573863380,0.08551938,149.17,149.16,25.64]
[1718573872393,0.08551938,149.17,149.16,25.98]
[1718573875389,0.6486681,149.22,149.2,20.31]
[1718573875686,16.4784,149.34,149.17,23.0791]
[1718573875687,16.4784,149.34,149.25,0.17]
[1718573875875,0.8506716,149.37,149.32,5.3]
[1718573876075,0.8506716,149.37,149.33,20.0]
[1718573876258,0.8506716,149.37,149.33,25.3]
[1718573876780,6.1506716,149.37,149.33,20.0]
[1718573876981,6.1506716,149.37,149.31,0.51]
[1718573876982,3.6506716,149.37,149.31,0.51]
[1718573877168,3.1506716,149.37,149.31,0.51]
[1718573877477,3.1506716,149.37,149.33,30.0]
[1718573877867,7.2460378,149.38,149.33,30.0]
[1718573878084,1.9460378,149.38,149.33,30.0]
[1718573878300,1.9460378,149.38,149.34,0.17]
[1718573878454,1.9460378,149.38,149.37,5.3]
[1718573878654,1.9460378,149.38,149.36,5.3]
[1718573879287,1.9460378,149.38,149.34,150.68]
[1718573879495,1.9460378,149.38,149.37,5.47]
[1718573879657,0.74677959,149.38,149.37,55.98]
[1718573879867,4.9505,149.48,149.38,0.17]
[1718573880163,16.4113,149.49,149.41,0.17]
[1718573880360,16.4113,149.49,149.41,0.68]
[1718573880558,0.36039091,149.51,149.41,20.68]
[1718573880870,4.8,149.47,149.41,25.98]
[1718573881086,5.3,149.46,149.41,25.98]
[1718573881262,0.36039091,149.51,149.41,20.68]
[1718573881466,0.36039091,149.51,149.41,0.68]
[1718573881668,5.3,149.49,149.41,30.68]
[1718573881867,5.3,149.5,149.45,0.17]
[1718573882203,0.36039091,149.51,149.45,0.68]
[1718573882204,5.3,149.49,149.45,0.68]
[1718573882565,0.36039091,149.51,149.45,0.68]
[1718573883068,0.36039091,149.51,149.45,30.68]
[1718573883462,5.3,149.49,149.45,30.68]
[1718573883667,5.3,149.48,149.45,30.68]
[1718573883984,0.36039091,149.51,149.45,30.68]
[1718573883985,5.3,149.49,149.45,30.68]
[1718573884169,5.3,149.49,149.45,30.34]
[1718573884367,5.3,149.49,149.45,30.0]
[1718573884583,0.36039091,149.51,149.46,0.51]
[1718573884786,0.36039091,149.51,149.46,30.34]
[1718573884965,0.36039091,149.51,149.46,30.17]
[1718573885292,5.66039091,149.51,149.46,30.17]
[1718573885774,8.13509091,149.51,149.46,30.17]
[1718573885976,5.3,149.49,149.46,30.0]
[1718573886183,0.36039091,149.51,149.46,30.0]
[1718573886364,0.36039091,149.51,149.47,0.17]
[1718573886568,5.3,149.5,149.47,0.68]
[1718573886989,5.3,149.5,149.47,0.17]
[1718573887172,5.3,149.5,149.45,20.0]
[1718573887173,5.3,149.5,149.46,0.51]
[1718573887964,5.66039091,149.51,149.46,0.51]
[1718573888182,0.36039091,149.51,149.47,0.17]
[1718573888687,5.3,149.5,149.46,0.51]
[1718573889688,5.66039091,149.51,149.46,0.51]
[1718573890068,5.66039091,149.51,149.45,20.0]
[1718573890267,5.66039091,149.51,149.44,5.81]
[1718573890464,0.36039091,149.51,149.45,50.17]
[1718573890774,0.36039091,149.51,149.46,0.34]
[1718573890973,0.36039091,149.51,149.46,0.17]
[1718573891480,0.36039091,149.51,149.46,30.34]
[1718573891996,0.36039091,149.51,149.46,0.17]
[1718573892210,5.66039091,149.51,149.46,0.34]
[1718573892895,0.36039091,149.51,149.46,5.64]
[1718573893303,5.66039091,149.51,149.47,0.17]
[1718573893692,0.36039091,149.51,149.47,0.17]
[1718573894392,5.66039091,149.51,149.47,0.17]
[1718573895006,5.66039091,149.51,149.47,0.34]
[1718573897091,5.66039091,149.51,149.47,0.17]
[1718573897400,5.66039091,149.51,149.46,20.34]
[1718573897700,5.3,149.5,149.46,20.34]
[1718573898577,0.36039091,149.51,149.46,20.0]
[1718573898777,5.3,149.5,149.45,25.98]
[1718573899004,5.3,149.5,149.46,0.34]
[1718573899294,5.66039091,149.51,149.46,0.34]
[1718573905180,5.66039091,149.51,149.45,20.17]
[1718573905379,5.66039091,149.51,149.45,5.3]
[1718573905591,5.66039091,149.51,149.46,20.0]
[1718573905794,0.36039091,149.51,149.46,20.0]
[1718573906100,5.66039091,149.51,149.46,20.0]
[1718573906308,5.66039091,149.51,149.46,0.17]
[1718573906499,5.66039091,149.51,149.46,20.34]
[1718573906700,5.66039091,149.51,149.46,20.68]
[1718573908410,5.66039091,149.51,149.46,20.51]
[1718573909489,5.66039091,149.51,149.46,20.17]
[1718573909694,5.66039091,149.51,149.46,20.0]
[1718573909903,5.66039091,149.51,149.45,20.0]
[1718573910795,5.66039091,149.51,149.44,5.64]
[1718573911002,5.66039091,149.51,149.45,20.34]
[1718573911197,5.3,149.5,149.45,20.34]
[1718573912713,5.3,149.5,149.45,20.0]
[1718573912904,5.3,149.48,149.43,5.47]
[1718573913143,5.3,149.48,149.44,20.0]
[1718573913367,5.3,149.49,149.43,5.47]
[1718573913809,5.3,149.5,149.43,5.47]
[1718573914511,5.3,149.5,149.44,20.0]
[1718573916289,5.3,149.5,149.43,5.47]
[1718573916496,5.3,149.48,149.44,20.0]
[1718573916689,5.3,149.47,149.44,20.0]
[1718573916993,5.3,149.47,149.42,0.51]
[1718573916994,5.3,149.47,149.4,20.0]
[1718573917222,7.78489091,149.51,149.42,5.3]
[1718573917419,5.3,149.48,149.43,20.0]
[1718573917990,0.36039091,149.51,149.44,0.34]
[1718573918225,0.36039091,149.51,149.47,5.3]
[1718573918420,0.36039091,149.51,149.46,0.17]
[1718573918727,0.36039091,149.51,149.47,5.3]
[1718573918889,0.36039091,149.51,149.48,20.34]
[1718573919827,0.36039091,149.51,149.48,0.34]
[1718573920123,0.36039091,149.51,149.47,20.0]
[1718573920124,5.66039091,149.51,149.47,20.0]
[1718573921102,5.66039091,149.51,149.46,20.51]
[1718573921305,5.66039091,149.51,149.47,0.17]
[1718573922402,0.36039091,149.51,149.47,0.17]
[1718573924493,0.36039091,149.51,149.47,5.47]
[1718573924788,0.36039091,149.51,149.48,20.0]
[1718573924996,0.36039091,149.51,149.47,0.17]
[1718573928722,0.36039091,149.51,149.47,0.51]
[1718573929026,0.36039091,149.51,149.47,5.81]
[1718573929405,0.36039091,149.51,149.48,20.0]
[1718573929631,0.36039091,149.51,149.47,0.51]
[1718573930010,0.36039091,149.51,149.47,20.17]
[1718573930731,5.66039091,149.51,149.47,20.17]
[1718573930934,5.66039091,149.51,149.47,20.0]
[1718573931231,0.36039091,149.51,149.47,20.0]
[1718573933710,0.36039091,149.51,149.46,0.68]
[1718573933920,0.36039091,149.51,149.46,20.68]
[1718573934313,0.36039091,149.51,149.47,0.17]
[1718573934919,0.36039091,149.51,149.47,0.51]
[1718573939348,0.36039091,149.51,149.47,0.34]
[1718573939555,0.36039091,149.51,149.47,0.17]
[1718573939936,0.36039091,149.51,149.46,0.68]
[1718573940438,0.36039091,149.51,149.46,2.01782531]
[1718573940629,0.36039091,149.51,149.46,0.68]
[1718573940833,0.36039091,149.51,149.46,2.0175746]
[1718573943448,0.36039091,149.51,149.46,0.68]
[1718573943955,5.66039091,149.51,149.46,0.68]
[1718573945446,5.66039091,149.51,149.46,0.34]
[1718573945644,5.66039091,149.51,149.45,5.3]
[1718573946335,5.3,149.5,149.45,0.17]
[1718573948732,5.3,149.5,149.45,5.47]
[1718573949575,5.66039091,149.51,149.45,5.47]
[1718573949773,5.66039091,149.51,149.44,0.51]
[1718573949930,5.66039091,149.51,149.45,5.3]
[1718573952298,5.66039091,149.51,149.44,0.51]
[1718573952442,5.66039091,149.51,149.45,5.3]
[1718573952641,5.66039091,149.51,149.44,0.51]
[1718573953047,5.66039091,149.51,149.45,5.3]
[1718573953565,13.08469091,149.51,149.44,0.51]
[1718573953774,5.3,149.5,149.44,5.81]
[1718573954672,11.7712,149.5,149.44,0.51]
[1718573954847,11.7712,149.5,149.44,5.64]
[1718573956365,11.7712,149.5,149.44,0.34]
[1718573956643,11.7712,149.5,149.44,5.64]
[1718573960670,11.7712,149.5,149.44,0.34]
[1718573960871,11.7712,149.5,149.44,5.64]
[1718573962765,6.4712,149.5,149.45,5.47]
[1718573962965,6.4712,149.5,149.46,0.34]
[1718573963166,6.4712,149.5,149.45,5.47]
[1718573963167,6.4712,149.5,149.45,5.3]
[1718573963386,11.7712,149.5,149.44,5.64]
[1718573965075,11.7712,149.5,149.44,0.34]
[1718573965388,15.81,149.49,149.44,0.34]
[1718573965567,21.11,149.49,149.41,20.0]
[1718573965774,5.3,149.48,149.42,5.98]
[1718573967195,5.3,149.48,149.42,0.68]
[1718573967490,5.3,149.48,149.42,5.64]
[1718573970298,5.3,149.48,149.42,0.34]
[1718573970504,5.3,149.48,149.39,20.0]
[1718573970505,5.3,149.47,149.39,20.0]
[1718573970800,5.3,149.47,149.38,41.2]
[1718573970989,5.3,149.47,149.37,9.35903116]
[1718573971179,5.3,149.47,149.41,5.3]
[1718573971381,15.81,149.49,149.37,9.35903116]
[1718573971593,5.3,149.47,149.41,5.3]
[1718573971778,7.7754,149.47,149.41,5.3]
[1718573971977,5.3,149.46,149.37,9.35903116]
[1718573972315,5.3,149.46,149.4,5.3]
[1718573974307,6.5913,149.45,149.37,9.35903116]
[1718573974473,15.544,149.44,149.4,5.3]
[1718573974677,15.544,149.44,149.38,20.0]
[1718573974872,15.544,149.44,149.4,5.3]
[1718573975697,15.544,149.44,149.38,20.0]
[1718573975882,15.544,149.44,149.39,5.3]
[1718573976083,20.844,149.44,149.39,5.3]
[1718573976273,20.844,149.44,149.37,0.34]
[1718573976483,20.844,149.44,149.39,5.3]
[1718573976714,20.844,149.44,149.35,20.0]
[1718573976880,20.844,149.44,149.37,5.3]
[1718573976881,5.3,149.43,149.37,5.3]
[1718573977503,5.3,149.43,149.38,5.3]
[1718573980112,15.544,149.44,149.33,0.17]
[1718573980113,18.0199,149.44,149.33,0.17]
[1718573980419,5.3,149.41,149.33,20.17]
[1718573980575,5.3,149.41,149.36,5.3]
[1718573981211,27.4353,149.4,149.34,5.3]
[1718573982210,27.4353,149.4,149.32,0.17]
[1718573982405,27.4353,149.4,149.34,5.3]
[1718573983001,22.1353,149.4,149.34,5.3]
[1718573983175,27.4353,149.4,149.34,5.3]
[1718573983393,27.4353,149.4,149.35,5.3]
[1718573984821,27.4353,149.4,149.33,0.17]
[1718573985098,27.4353,149.4,149.32,0.17]
[1718573985099,27.4353,149.4,149.35,5.3]
[1718573985817,27.4353,149.4,149.32,0.34]
[1718573986115,5.3,149.38,149.33,5.3]
[1718573986280,5.3,149.38,149.27,16.3487]
[1718573986281,5.3,149.38,149.32,5.3]
[1718573987399,5.3,149.38,149.27,16.3487]
[1718573987783,5.3,149.37,149.32,5.3]
[1718573988003,44.425,149.4,149.28,0.34]
[1718573988004,24.6119,149.4,149.28,0.34]
[1718573988210,5.3,149.37,149.27,16.3487]
[1718573988502,16.2963,149.36,149.31,5.3]
[1718573989688,6.1451,149.35,149.26,0.17]
[1718573989883,6.1451,149.35,149.31,5.3]
[1718573991006,6.1451,149.35,149.26,0.68]
[1718573991310,6.1451,149.35,149.31,5.3]
[1718573991801,6.1451,149.35,149.3,5.3]
[1718573992012,6.1451,149.35,149.26,0.68]
[1718573992301,6.1451,149.35,149.29,5.3]
[1718573993494,6.1451,149.35,149.26,0.68]
[1718573993709,6.1451,149.35,149.29,5.3]
[1718573995109,5.3,149.34,149.29,5.3]
[1718573995317,5.3,149.34,149.24,21.2]
[1718573995605,5.3,149.34,149.29,5.3]
[1718573996991,11.4451,149.35,149.29,5.3]
[1718573997222,11.4451,149.35,149.26,0.17]
[1718573997386,11.4451,149.35,149.29,5.3]
[1718573997579,6.1451,149.35,149.26,0.68]
[1718573997886,5.3,149.33,149.26,0.68]
[1718573998299,5.3,149.33,149.28,5.3]
[1718573998590,5.3,149.34,149.28,5.3]
[1718573998907,5.3,149.33,149.27,5.3]
[1718573999309,5.3,149.32,149.26,5.47]
[1718573999508,5.3,149.32,149.27,5.3]
[1718573999913,16.1949,149.31,149.19,123.2917926]
[1718574000085,16.1949,149.31,149.26,5.3]
[1718574000294,16.1949,149.31,149.2,13.92611289]
[1718574000489,16.1949,149.31,149.21,120.0]
[1718574000691,16.1949,149.31,149.21,133.92611289]
[1718574000989,16.1949,149.31,149.29,5.3]
[1718574001301,16.1949,149.31,149.24,21.2]
[1718574001637,16.1949,149.31,149.29,5.3]
[1718574001930,16.1949,149.31,149.26,5.3]
[1718574002285,16.1949,149.31,149.25,0.34]
[1718574002486,16.1949,149.31,149.27,5.3]
[1718574003208,16.1949,149.31,149.22,20.0]
[1718574003403,6.2709,149.3,149.26,5.3]
[1718574006718,6.2709,149.3,149.23,0.17]
[1718574006995,6.2709,149.3,149.27,5.3]
[1718574007287,6.2709,149.3,149.26,5.3]
[1718574007500,6.2709,149.3,149.25,5.3]
[1718574008892,6.2709,149.3,149.23,0.68]
[1718574009101,6.2709,149.3,149.25,5.3]
[1718574010005,6.2709,149.3,149.23,0.68]
[1718574010217,6.2709,149.3,149.25,5.3]
[1718574010919,6.2709,149.3,149.23,0.34]
[1718574011097,6.2709,149.3,149.23,0.17]
[1718574011298,11.5709,149.3,149.25,5.3]
[1718574011723,5.3,149.29,149.23,0.17]
[1718574011913,5.3,149.29,149.24,5.3]
[1718574012405,5.3,149.29,149.23,0.17]
[1718574012618,5.3,149.29,149.2,20.0]
[1718574012619,5.3,149.29,149.24,5.3]
[1718574012920,5.3,149.29,149.23,5.3]
[1718574015409,6.2709,149.3,149.23,5.3]
[1718574015607,5.3,149.29,149.23,5.3]
[1718574016218,16.2547,149.28,149.21,0.17]
[1718574016427,16.2547,149.28,149.23,5.3]
[1718574017831,16.2547,149.28,149.21,0.17]
[1718574018030,21.5547,149.28,149.22,5.3]
[1718574018217,5.3,149.27,149.21,5.3]
[1718574018411,5.3,149.27,149.2,0.17]
[1718574018611,5.3,149.27,149.21,5.3]
[1718574018822,6.61,149.26,149.19,0.68]
[1718574019028,6.61,149.26,149.21,5.3]
[1718574021241,6.61,149.26,149.19,0.68]
[1718574021423,6.61,149.26,149.21,5.3]
[1718574022014,11.91,149.26,149.21,5.3]
[1718574023235,15.0101,149.25,149.14,5.288641]
[1718574023416,15.0101,149.25,149.2,5.3]
[1718574024037,15.0101,149.25,149.21,5.3]
[1718574024330,15.0101,149.25,149.2,5.3]
[1718574026723,20.3101,149.25,149.2,5.3]
[1718574027371,21.3076,149.24,149.2,5.3]
[1718574027646,2.4803,149.18,149.1,5.3]
[1718574027843,5.3,149.16,149.1,5.3]
[1718574030453,7.6105,149.19,149.1,5.3]
[1718574030621,5.3,149.16,149.1,5.3]
[1718574031754,5.3,149.16,149.09,5.3]
[1718574031755,5.3,149.15,149.09,5.3]
[1718574033659,6.2532,149.16,149.09,5.3]
[1718574033839,5.3,149.15,149.09,5.3]
[1718574034250,6.2532,149.16,149.09,5.3]
[1718574034453,11.5532,149.16,149.09,5.3]
[1718574034745,6.2532,149.16,149.11,5.3]
[1718574034927,6.2532,149.16,149.12,5.3]
[1718574035358,16.6504,149.15,149.06,0.17]
[1718574035548,21.9504,149.15,149.06,20.34]
[1718574035741,21.9504,149.15,149.1,5.3]
[1718574037941,6.4837,149.12,149.06,20.34]
[1718574038158,16.6504,149.15,149.07,5.3]
[1718574038652,16.6504,149.15,149.06,5.3]
[1718574039042,16.6504,149.15,149.04,0.17]
[1718574039247,16.6504,149.15,149.08,5.3]
[1718574040053,16.6504,149.15,149.04,0.68]
[1718574040235,5.3,149.13,149.07,5.3]
[1718574040768,16.6504,149.15,149.07,5.3]
[1718574041064,5.3,149.13,149.07,5.3]
[1718574041572,16.6504,149.15,149.07,5.3]
[1718574041752,5.3,149.13,149.07,5.3]
[1718574042258,16.6504,149.15,149.04,0.68]
[1718574042259,5.3,149.12,149.06,5.3]
[1718574042848,5.3,149.13,149.07,5.3]
[1718574043173,16.6504,149.15,149.07,5.3]
[1718574043474,5.3,149.13,149.07,5.3]
[1718574043968,5.3,149.12,149.06,5.3]
[1718574044284,19.1311,149.15,148.99,15.8641716]
[1718574044285,9.924,149.14,148.99,15.8641716]
[1718574044456,6.5772,149.1,149.04,5.3]
[1718574044760,11.8772,149.1,149.04,5.3]
[1718574044941,11.8772,149.1,148.99,15.8641716]
[1718574045260,11.8772,149.1,149.04,5.3]
[1718574045873,6.5772,149.1,149.0,0.17]
[1718574046064,6.5772,149.1,149.04,5.3]
[1718574046272,11.8772,149.1,149.0,20.68]
[1718574046440,11.8772,149.1,149.04,5.3]
[1718574046637,6.5772,149.1,149.04,5.3]
[1718574046840,11.8772,149.1,149.04,5.3]
[1718574047053,6.5772,149.1,149.05,5.3]
[1718574048073,11.8772,149.1,149.05,5.3]
[1718574048282,11.8772,149.1,149.04,5.3]
[1718574049079,5.3,149.09,149.03,0.68]
[1718574049380,20.8527,149.09,149.04,5.3]
[1718574049565,20.8527,149.09,149.04,5.1185245]
[1718574049952,20.8527,149.09,149.03,0.68]
[1718574050356,15.5527,149.09,149.03,5.81]
[1718574050660,20.8527,149.09,149.03,5.47]
[1718574051059,5.3,149.08,149.03,5.47]
[1718574052582,5.3,149.08,149.03,0.17]
[1718574052764,5.3,149.08,149.03,5.47]
[1718574052950,15.5527,149.09,149.03,5.47]
[1718574053151,5.3,149.08,149.03,5.47]
[1718574053680,5.3,149.08,149.03,0.17]
[1718574053881,5.3,149.08,149.03,5.3]
[1718574054057,5.3,149.08,149.02,5.3]
[1718574056581,5.3,149.07,149.01,0.34]
[1718574056874,5.3,149.07,149.0,0.51]
[1718574057178,5.3,149.07,149.01,5.3]
[1718574059389,5.3,149.07,149.0,0.51]
[1718574059589,5.3,149.07,149.01,5.3]
[1718574060086,5.3,149.06,149.0,5.81]
[1718574060257,5.3,149.06,149.0,0.51]
[1718574060770,5.3,149.06,149.0,5.81]
[1718574060972,5.3,149.05,149.0,5.64]
[1718574061176,15.5527,149.09,149.0,5.3]
[1718574061497,5.3,149.05,149.0,5.3]
[1718574061985,5.3,149.05,148.99,6.1506716]
[1718574062959,20.6991,149.04,148.99,0.8506716]
[1718574063156,5.3,149.03,148.99,0.8506716]
[1718574063697,20.6991,149.04,148.99,0.8506716]
[1718574064677,5.3,149.03,148.99,0.8506716]
[1718574065985,5.3,149.02,148.99,0.8506716]
[1718574067269,15.3991,149.04,148.99,0.8506716]
[1718574067473,5.3,149.01,148.99,0.8506716]
[1718574067672,5.3,149.0,148.99,0.8506716]
[1718574069195,15.3991,149.04,148.99,0.8506716]
[1718574069375,5.3,149.01,148.99,0.8506716]
[1718574069998,5.3,149.0,148.99,0.8506716]
[1718574073780,51.9259,149.0,148.99,0.8506716]
[1718574073998,51.9259,149.0,148.88,115.1865]
[1718574073999,2.4841,148.95,148.88,15.1865]
[1718574074191,5.3,148.95,148.88,15.1865]
[1718574074670,5.3,148.95,148.89,5.3]
[1718574074871,5.3,148.95,148.9,5.3]
[1718574075074,5.3,148.95,148.88,15.1865]
[1718574075277,5.3,148.95,148.9,5.3]
[1718574075496,5.3,148.96,148.9,5.3]
[1718574075692,5.3,148.96,148.88,15.1865]
[1718574075908,5.3,148.96,148.9,5.3]
[1718574076077,5.3,148.95,148.89,5.3]
[1718574078786,5.3,148.95,148.88,0.51]
[1718574078986,5.3,148.96,148.9,5.3]
[1718574080688,5.3,148.96,148.89,0.34]
[1718574080902,5.3,148.96,148.9,5.3]
[1718574082711,2.4835,148.98,148.9,5.3]
[1718574082896,5.3,148.96,148.9,5.3]
[1718574084884,5.3,148.96,148.88,0.17]
[1718574085085,5.3,148.95,148.89,5.3]
[1718574085306,5.3,148.95,148.86,20.0]
[1718574085604,5.3,148.92,148.86,20.0]
[1718574085899,26.7621,148.95,148.88,5.3]
[1718574085900,5.3,148.94,148.88,5.3]
[1718574086305,21.7939,148.95,148.89,5.3]
[1718574086517,27.0939,148.95,148.89,5.3]
[1718574087321,21.7939,148.95,148.89,5.3]
[1718574088077,27.0939,148.95,148.89,5.3]
[1718574088611,27.0939,148.95,148.86,20.0]
[1718574088804,27.0939,148.95,148.87,0.34]
[1718574089109,5.3,148.94,148.89,5.3]
[1718574089617,5.3,148.94,148.88,5.3]
[1718574090591,5.3,148.93,148.87,5.47]
[1718574091191,5.3,148.93,148.87,0.17]
[1718574091389,5.3,148.93,148.88,5.3]
[1718574092519,5.3,148.93,148.86,0.51]
[1718574092716,2.4843,148.94,148.8,16.241]
[1718574092883,5.3,148.91,148.81,20.0]
[1718574093089,5.3,148.91,148.85,5.3]
[1718574093494,5.3,148.91,148.81,20.0]
[1718574093816,5.3,148.91,148.85,5.3]
[1718574095436,0.17,148.94,148.85,5.3]
[1718574095587,5.3,148.89,148.83,5.3]
[1718574097098,5.3,148.89,148.8,16.241]
[1718574097303,5.3,148.89,148.83,5.3]
[1718574097497,5.3,148.88,148.77,5.40139239]
[1718574097702,5.3,148.87,148.81,5.3]
[1718574099000,5.3,148.87,148.76,116.0658]
[1718574099201,5.3,148.87,148.82,5.3]
[1718574099901,6.5287,148.89,148.82,5.3]
[1718574100216,5.3,148.88,148.83,5.3]
[1718574101017,5.3,148.86,148.76,16.0658]
[1718574101232,5.3,148.86,148.8,5.3]
[1718574102230,5.3,148.85,148.8,5.3]
[1718574103504,5.3,148.86,148.8,5.3]
[1718574103904,15.8401,148.87,148.8,5.3]
[1718574104201,5.3,148.85,148.79,5.3]
[1718574104419,5.3,148.85,148.76,16.0658]
[1718574104601,5.3,148.85,148.79,5.3]
[1718574105923,5.3,148.85,148.76,16.0658]
[1718574106129,5.3,148.85,148.78,5.3]
[1718574106506,5.3,148.85,148.79,5.3]
[1718574107422,5.3,148.85,148.73,15.7924]
[1718574107620,5.3,148.85,148.77,5.3]
[1718574108241,5.3,148.85,148.73,15.7924]
[1718574108451,5.3,148.85,148.77,5.3]
[1718574109033,5.3,148.85,148.78,5.3]
[1718574110026,0.17,148.86,148.78,5.3]
[1718574110240,5.3,148.85,148.79,5.3]
[1718574111238,5.3,148.85,148.75,21.2]
[1718574111423,5.3,148.85,148.74,20.0]
[1718574111738,5.3,148.85,148.79,5.3]
[1718574112523,5.3,148.85,148.78,5.3]
[1718574114318,13.4371,148.85,148.77,5.3]
[1718574114930,8.4657,148.85,148.77,5.3]
[1718574115521,5.98,148.85,148.77,5.3]
[1718574115957,5.98,148.85,148.76,5.3]
[1718574116124,8.4657,148.85,148.76,5.3]
[1718574116536,33.4371,148.85,148.73,15.7924]
[1718574116735,28.4657,148.85,148.76,5.3]
[1718574117854,25.98,148.85,148.76,5.3]
[1718574118736,28.4657,148.85,148.76,5.3]
[1718574119643,28.4657,148.85,148.77,5.3]
[1718574120555,28.4657,148.85,148.73,15.7924]
[1718574120753,28.1371,148.85,148.77,5.3]
[1718574120928,33.4371,148.85,148.77,5.3]
[1718574121129,50.837,148.85,148.77,5.3]
[1718574121946,50.837,148.85,148.76,5.3]
[1718574123325,57.83410465,148.85,148.73,15.7924]
[1718574123526,57.83410465,148.85,148.76,5.3]
[1718574124334,52.53410465,148.85,148.76,5.3]
[1718574124736,57.83410465,148.85,148.73,15.7924]
[1718574125068,57.83410465,148.85,148.76,5.3]
[1718574125350,57.83410465,148.85,148.73,15.7924]
[1718574125546,102.83410465,148.85,148.76,5.3]
[1718574126447,102.83410465,148.85,148.73,15.7924]
[1718574126448,27.67710465,148.85,148.78,5.3]
[1718574126636,32.97710465,148.85,148.77,5.3]
[1718574126838,35.46280465,148.85,148.77,5.3]
[1718574127235,42.59130465,148.85,148.77,5.3]
[1718574127555,47.89130465,148.85,148.77,5.3]
[1718574127769,52.53410465,148.85,148.77,5.3]
[1718574127954,57.83410465,148.85,148.77,5.3]
[1718574129345,52.53410465,148.85,148.77,5.3]
[1718574129544,57.83410465,148.85,148.77,5.3]
[1718574130235,52.53410465,148.85,148.77,5.3]
[1718574130436,45.07700465,148.85,148.78,15.7034]
[1718574130636,57.83410465,148.85,148.78,15.7034]
[1718574131173,40.43420465,148.85,148.78,15.7034]
[1718574131352,57.83410465,148.85,148.78,15.7034]
[1718574134559,52.53410465,148.85,148.77,5.3]
[1718574134744,0.17,148.8,148.73,15.7034]
[1718574134981,5.3,148.8,148.74,5.3]
[1718574135147,5.3,148.8,148.73,15.7034]
[1718574135344,5.3,148.8,148.74,5.3]
[1718574135958,2.4863,148.82,148.74,5.3]
[1718574136159,5.64,148.81,148.75,5.3]
[1718574136465,0.34,148.81,148.75,5.3]
[1718574136775,5.64,148.81,148.75,5.3]
[1718574136937,6.99798517,148.83,148.75,5.3]
[1718574137133,2.4862,148.82,148.73,15.7034]
[1718574137338,5.3,148.81,148.75,5.3]
[1718574137555,6.99798517,148.83,148.73,15.7034]
[1718574137866,5.3,148.82,148.76,5.3]
[1718574138540,9.48408517,148.83,148.76,5.3]